bitfinex/quotes_BTCUSD_20240701
["timestamp","ask_amount","ask_price","bid_price","bid_amount"]
[1719810124424,0.00504476,63359.0,63358.0,3.08589049]
[1719810124987,0.00504476,63359.0,63358.0,3.09989049]
[1719810125404,0.00504476,63359.0,63358.0,2.98167817]
[1719810126668,0.00504476,63359.0,63358.0,2.85056048]
[1719810126872,0.00504476,63359.0,63358.0,2.98168078]
[1719810127809,0.00504476,63359.0,63358.0,3.09989148]
[1719810128033,0.00504476,63359.0,63358.0,3.10081548]
[1719810129142,0.00504476,63359.0,63358.0,3.51948148]
[1719810129518,0.00504476,63359.0,63358.0,3.42024073]
[1719810129724,0.00504476,63359.0,63358.0,3.48579954]
[1719810129928,0.00504476,63359.0,63358.0,3.33570844]
[1719810130136,0.00504476,63359.0,63358.0,3.66349827]
[1719810132416,0.00504476,63359.0,63358.0,3.99128509]
[1719810132613,0.00504476,63359.0,63358.0,3.66349827]
[1719810132792,0.00504476,63359.0,63358.0,3.99128522]
[1719810133026,0.00504476,63359.0,63358.0,3.66349539]
[1719810133226,0.00504476,63359.0,63358.0,3.99128186]
[1719810133337,0.00504476,63359.0,63358.0,3.66349491]
[1719810133693,0.00504476,63359.0,63358.0,3.99128206]
[1719810134239,0.00504476,63359.0,63358.0,3.66349491]
[1719810134440,0.00504476,63359.0,63358.0,3.99128207]
[1719810136298,0.00504476,63359.0,63358.0,3.59793764]
[1719810136510,0.00504476,63359.0,63358.0,3.99128164]
[1719810136852,0.00504476,63359.0,63358.0,3.99128157]
[1719810137180,4.476e-05,63359.0,63358.0,3.99128157]
[1719810138941,0.00842,63362.0,63361.0,2.2116995]
[1719810139079,0.00842,63362.0,63361.0,2.74095286]
[1719810139285,0.00084,63371.0,63370.0,0.8695705]
[1719810139485,0.00084,63371.0,63370.0,3.14407486]
[1719810139729,0.00084,63371.0,63370.0,3.80637]
[1719810139929,0.00084,63371.0,63370.0,3.98407419]
[1719810140339,0.00084,63371.0,63370.0,3.45968086]
[1719810140538,0.00084,63371.0,63370.0,3.46968086]
[1719810140715,0.00084,63371.0,63370.0,3.45968086]
[1719810140921,0.00084,63371.0,63370.0,3.34256648]
[1719810141401,0.00084,63371.0,63370.0,3.49261932]
[1719810141752,0.00084,63371.0,63370.0,3.4966541]
[1719810142273,0.00084,63371.0,63370.0,3.5106541]
[1719810142496,0.00084,63371.0,63370.0,3.52961924]
[1719810142937,0.00084,63371.0,63370.0,3.5106541]
[1719810144388,0.00084,63371.0,63370.0,3.37956648]
[1719810144637,0.00084,63371.0,63370.0,3.51065905]
[1719810145107,0.00084,63371.0,63370.0,3.48765905]
[1719810145995,0.00084,63371.0,63370.0,3.45965905]
[1719810146318,0.00084,63371.0,63370.0,3.47365905]
[1719810146926,0.00084,63371.0,63370.0,3.48765905]
[1719810147158,0.00084,63371.0,63370.0,3.47365905]
[1719810147355,0.00084,63371.0,63370.0,3.41395905]
[1719810147551,0.00084,63371.0,63370.0,3.48765905]
[1719810148042,0.00084,63371.0,63370.0,3.35656648]
[1719810148244,0.00084,63371.0,63370.0,3.48765921]
[1719810149091,0.00084,63371.0,63370.0,3.11125321]
[1719810149274,0.00084,63371.0,63370.0,2.45237671]
[1719810149501,0.00084,63371.0,63370.0,2.52607671]
[1719810150166,0.00084,63371.0,63370.0,2.49807671]
[1719810150366,0.00084,63371.0,63370.0,2.52607671]
[1719810150819,0.00084,63371.0,63370.0,2.52608765]
[1719810151483,0.00084,63371.0,63370.0,2.5449458]
[1719810152049,0.00084,63371.0,63370.0,2.3449458]
[1719810152253,0.00084,63371.0,63370.0,2.5449458]
[1719810152702,0.00084,63371.0,63370.0,2.7362163]
[1719810154201,0.00084,63371.0,63370.0,2.73621652]
[1719810154413,0.00084,63371.0,63370.0,2.80711582]
[1719810157399,0.00084,63371.0,63370.0,2.80712628]
[1719810158551,0.00084,63371.0,63370.0,2.73621595]
[1719810159732,0.00084,63371.0,63370.0,3.19392195]
[1719810159952,0.00084,63371.0,63370.0,3.28846905]
[1719810160403,0.00084,63371.0,63370.0,3.35165005]
[1719810160666,0.00084,63371.0,63370.0,2.47702313]
[1719810160892,0.14704,63371.0,63370.0,2.60535244]
[1719810161121,0.14704,63371.0,63370.0,1.44754452]
[1719810161345,0.14704,63371.0,63370.0,1.40025844]
[1719810161570,0.14704,63371.0,63370.0,1.26914998]
[1719810161800,0.14704,63371.0,63370.0,1.19544998]
[1719810162033,0.14704,63371.0,63370.0,0.833111]
[1719810162034,0.6291705,63371.0,63370.0,0.833111]
[1719810162263,1.21477496,63371.0,63370.0,0.76993]
[1719810162712,1.53037596,63371.0,63370.0,0.76993]
[1719810162909,1.53037596,63371.0,63370.0,0.75593]
[1719810163115,1.4490725,63371.0,63370.0,0.75593]
[1719810163331,1.4490725,63371.0,63370.0,0.74193]
[1719810163480,1.4510725,63371.0,63370.0,0.74293]
[1719810164312,1.3773725,63371.0,63370.0,0.74293]
[1719810165081,1.3803725,63371.0,63370.0,0.74393]
[1719810165955,0.40984,63371.0,63370.0,0.74393]
[1719810166917,0.40784,63371.0,63370.0,0.74293]
[1719810167081,0.41184,63371.0,63370.0,0.74393]
[1719810168410,0.40484,63371.0,63370.0,0.74193]
[1719810168847,0.41084,63371.0,63370.0,0.74293]
[1719810169219,0.40784,63371.0,63370.0,0.74193]
[1719810169643,0.40884,63371.0,63370.0,0.74193]
[1719810171123,0.724441,63371.0,63370.0,0.74193]
[1719810171550,0.7481705,63371.0,63370.0,0.74193]
[1719810172181,0.724441,63371.0,63370.0,0.74193]
[1719810172857,1.3793725,63371.0,63370.0,0.74193]
[1719810173268,1.4530725,63371.0,63370.0,0.74193]
[1719810173946,1.7686735,63371.0,63370.0,0.74193]
[1719810174161,1.93101248,63371.0,63370.0,0.74193]
[1719810174365,1.85731248,63371.0,63370.0,0.74193]
[1719810174590,1.94101248,63371.0,63370.0,0.74193]
[1719810175169,1.93701248,63371.0,63370.0,0.74193]
[1719810175582,1.94101248,63371.0,63370.0,0.74293]
[1719810175962,1.94701248,63371.0,63370.0,0.74393]
[1719810178170,1.7746735,63371.0,63370.0,0.74393]
[1719810180380,1.7846735,63371.0,63370.0,0.74393]
[1719810180982,1.94701248,63371.0,63370.0,0.74393]
[1719810186360,1.93701248,63371.0,63370.0,0.74393]
[1719810187468,1.94701248,63371.0,63370.0,0.74393]
[1719810187868,1.93701248,63371.0,63370.0,0.74393]
[1719810189184,1.94701248,63371.0,63370.0,0.74393]
[1719810190137,1.94671841,63371.0,63370.0,0.74393]
[1719810191107,1.94671841,63371.0,63370.0,0.75185]
[1719810191541,1.97142797,63371.0,63370.0,0.75185]
[1719810192161,1.96142797,63371.0,63370.0,0.75185]
[1719810192373,1.77437943,63371.0,63370.0,0.75185]
[1719810192842,1.79908875,63371.0,63370.0,0.75185]
[1719810193867,1.31257843,63371.0,63370.0,0.75185]
[1719810193997,1.23887843,63371.0,63370.0,0.75185]
[1719810194435,1.23287843,63371.0,63370.0,0.75085]
[1719810194782,1.23887843,63371.0,63370.0,0.75185]
[1719810195176,0.57794693,63371.0,63370.0,0.75085]
[1719810195383,0.57994693,63371.0,63370.0,0.89045]
[1719810195584,0.58394693,63371.0,63370.0,0.89145]
[1719810195765,0.58394693,63371.0,63370.0,0.89045]
[1719810195974,0.58394693,63371.0,63370.0,0.89145]
[1719810195975,0.58994693,63371.0,63370.0,0.89145]
[1719810196181,0.58594693,63371.0,63370.0,0.89045]
[1719810196389,0.57394693,63371.0,63370.0,0.88945]
[1719810196692,0.57394693,63371.0,63370.0,0.89045]
[1719810196693,0.57794693,63371.0,63370.0,0.89045]
[1719810197099,0.57394693,63371.0,63370.0,0.88945]
[1719810197742,0.57694693,63371.0,63370.0,0.88945]
[1719810198597,0.57894693,63371.0,63370.0,0.88945]
[1719810200117,0.57865183,63371.0,63370.0,0.88945]
[1719810200567,0.60238133,63371.0,63370.0,0.88945]
[1719810200796,0.60238133,63371.0,63370.0,0.74985]
[1719810201696,0.57865183,63371.0,63370.0,0.74985]
[1719810203881,0.26305083,63371.0,63370.0,0.74985]
[1719810204415,0.26305083,63371.0,63370.0,0.89625]
[1719810209195,0.10525083,63371.0,63370.0,0.89625]
[1719810209399,0.00525083,63371.0,63370.0,0.89625]
[1719810209753,0.10525083,63371.0,63370.0,0.89625]
[1719810210177,0.10466193,63371.0,63370.0,0.89625]
[1719810210576,0.00466193,63371.0,63370.0,0.89625]
[1719810212581,0.00466193,63371.0,63370.0,1.09625]
[1719810212803,0.00466193,63371.0,63370.0,1.159443]
[1719810214762,0.00466193,63371.0,63370.0,1.47958498]
[1719810216775,0.00466193,63371.0,63370.0,2.11079698]
[1719810216961,0.00466193,63371.0,63370.0,1.79519098]
[1719810218027,0.266191,63379.0,63371.0,0.157799]
[1719810218227,0.266191,63379.0,63372.0,0.97795898]
[1719810218605,0.2899205,63379.0,63372.0,0.97795898]
[1719810218808,0.157783,63378.0,63372.0,0.97795898]
[1719810219006,0.1,63377.0,63372.0,0.97795898]
[1719810219800,0.2665165,63377.0,63372.0,0.90425898]
[1719810219998,0.257787,63377.0,63372.0,0.90425898]
[1719810220212,0.1665205,63375.0,63372.0,0.90425898]
[1719810220423,0.157791,63375.0,63372.0,0.90425898]
[1719810220678,0.157791,63375.0,63372.0,0.90525898]
[1719810221681,0.157791,63375.0,63372.0,0.90425898]
[1719810222122,0.157791,63375.0,63372.0,0.74192]
[1719810222123,0.319584,63375.0,63372.0,0.74192]
[1719810222305,0.157793,63374.0,63372.0,0.74192]
[1719810224113,0.161793,63374.0,63372.0,0.74192]
[1719810228862,0.157795,63373.0,63372.0,0.74192]
[1719810229140,0.473386,63373.0,63372.0,0.74192]
[1719810230521,0.474386,63373.0,63372.0,0.74192]
[1719810230757,0.475386,63373.0,63372.0,0.74192]
[1719810233233,0.8147065,63373.0,63372.0,0.74192]
[1719810233476,0.8766065,63373.0,63372.0,0.74192]
[1719810234091,0.8147065,63373.0,63372.0,0.74192]
[1719810234498,0.8972065,63373.0,63372.0,0.74192]
[1719810237759,0.8147065,63373.0,63372.0,0.74192]
[1719810237966,1.3696975,63373.0,63372.0,0.74192]
[1719810238169,1.46810171,63373.0,63372.0,0.74192]
[1719810238775,1.47810171,63373.0,63372.0,0.74192]
[1719810238976,1.79369271,63373.0,63372.0,0.74192]
[1719810239224,1.95603169,63373.0,63372.0,0.74192]
[1719810239347,1.97903169,63373.0,63372.0,0.74192]
[1719810240003,1.97803169,63373.0,63372.0,0.74192]
[1719810240236,1.98144371,63373.0,63372.0,0.74292]
[1719810240884,1.97144371,63373.0,63372.0,0.74292]
[1719810241162,1.89674371,63373.0,63372.0,0.74292]
[1719810241375,1.89674371,63373.0,63372.0,0.74392]
[1719810241376,1.91274371,63373.0,63372.0,0.74392]
[1719810241581,1.97644371,63373.0,63372.0,0.74392]
[1719810241990,1.98644371,63373.0,63372.0,0.73749046]
[1719810244019,1.97644371,63373.0,63372.0,0.73749046]
[1719810244543,1.95644371,63373.0,63372.0,0.73749046]
[1719810245372,1.96644371,63373.0,63372.0,0.73749046]
[1719810245925,1.95644371,63373.0,63372.0,0.73749046]
[1719810246126,1.96644371,63373.0,63372.0,0.73749046]
[1719810250183,1.9658563,63373.0,63372.0,0.73749046]
[1719810258025,1.9658563,63373.0,63372.0,0.7346434]
[1719810269311,1.24182632,63373.0,63372.0,0.7346434]
[1719810269562,1.24182632,63373.0,63372.0,0.8792434]
[1719810270197,1.24065886,63373.0,63372.0,0.8792434]
[1719810271242,1.23465886,63373.0,63372.0,0.8782434]
[1719810271619,1.23965886,63373.0,63372.0,0.8792434]
[1719810271820,1.23565886,63373.0,63372.0,0.8772434]
[1719810272229,1.24565886,63373.0,63372.0,0.8792434]
[1719810272629,1.24065886,63373.0,63372.0,0.8782434]
[1719810273095,1.24565886,63373.0,63372.0,0.8792434]
[1719810276342,0.90633836,63373.0,63372.0,0.8792434]
[1719810276543,0.93006786,63373.0,63372.0,0.8792434]
[1719810277586,0.92006786,63373.0,63372.0,0.8782434]
[1719810277798,0.90133836,63373.0,63372.0,0.8792434]
[1719810278016,0.89633836,63373.0,63372.0,0.8782434]
[1719810278631,0.89633836,63373.0,63372.0,0.8792434]
[1719810278632,0.90133836,63373.0,63372.0,0.8792434]
[1719810279254,0.89633836,63373.0,63372.0,0.8782434]
[1719810279456,0.58574736,63373.0,63372.0,0.8782434]
[1719810279855,0.92506786,63373.0,63372.0,0.8782434]
[1719810280709,0.92006786,63373.0,63372.0,0.8772434]
[1719810280881,0.92006786,63373.0,63372.0,0.8782434]
[1719810281293,0.92506786,63373.0,63372.0,0.8782434]
[1719810281698,0.92006786,63373.0,63372.0,0.8782434]
[1719810281905,0.91506786,63373.0,63372.0,0.8772434]
[1719810282106,0.89633836,63373.0,63372.0,0.8772434]
[1719810282308,0.90133836,63373.0,63372.0,0.8772434]
[1719810286026,0.90133836,63373.0,63372.0,0.8781674]
[1719810286513,0.90217836,63373.0,63372.0,0.8781674]
[1719810287101,0.87747415,63373.0,63372.0,0.8781674]
[1719810289663,0.90120365,63373.0,63372.0,0.8781674]
[1719810290041,0.56188315,63373.0,63372.0,0.8781674]
[1719810290378,0.5613126,63373.0,63372.0,0.8781674]
[1719810293515,0.58601771,63373.0,63372.0,0.8781674]
[1719810293713,0.5613126,63373.0,63372.0,0.8781674]
[1719810297644,0.5850421,63373.0,63372.0,0.8781674]
[1719810300401,0.60945225,63373.0,63372.0,0.8781674]
[1719810300775,0.58572275,63373.0,63372.0,0.8781674]
[1719810301186,0.56101795,63373.0,63372.0,0.8781674]
[1719810301391,0.58572274,63373.0,63372.0,0.8781674]
[1719810301788,0.60945224,63373.0,63372.0,0.8781674]
[1719810302317,0.58572274,63373.0,63372.0,0.8781674]
[1719810303051,0.27013174,63373.0,63372.0,0.8781674]
[1719810303236,0.11084,63373.0,63372.0,0.8781674]
[1719810303664,0.11084,63373.0,63372.0,0.9518674]
[1719810303872,0.11084,63373.0,63372.0,1.1096654]
[1719810304078,0.00084,63373.0,63372.0,1.1096654]
[1719810304282,0.00484,63373.0,63372.0,2.10319638]
[1719810304695,0.00284,63373.0,63372.0,2.10319638]
[1719810304899,0.00084,63373.0,63372.0,2.10419638]
[1719810305105,0.00084,63373.0,63372.0,2.10619638]
[1719810305279,0.00084,63373.0,63372.0,2.10519638]
[1719810305481,0.00084,63373.0,63372.0,2.10919638]
[1719810306686,0.00084,63373.0,63372.0,2.10719638]
[1719810307043,0.00084,63373.0,63372.0,2.11019638]
[1719810307639,0.00084,63373.0,63372.0,2.11719638]
[1719810309636,0.00084,63373.0,63372.0,1.80160038]
[1719810310411,0.00025184,63373.0,63372.0,1.80160038]
[1719810317632,0.00025184,63373.0,63372.0,2.11719638]
[1719810317836,0.00025184,63373.0,63372.0,2.16448856]
[1719810318044,0.00025184,63373.0,63372.0,2.30846688]
[1719810318289,0.00025184,63373.0,63372.0,2.50846688]
[1719810318501,0.00025184,63373.0,63372.0,2.82406288]
[1719810319664,0.00025184,63373.0,63372.0,2.63279238]
[1719810319868,0.00025184,63373.0,63372.0,2.55909238]
[1719810320072,0.00025184,63373.0,63372.0,2.63279238]
[1719810320293,0.00079856,63377.0,63376.0,0.473364]
[1719810320530,0.00079856,63377.0,63376.0,1.60187298]
[1719810321792,0.00079856,63377.0,63376.0,1.60287298]
[1719810322068,0.00079856,63377.0,63376.0,2.10971948]
[1719810322306,0.00079856,63377.0,63376.0,1.91844898]
[1719810322799,0.00079856,63377.0,63376.0,1.92044898]
[1719810323020,0.00079856,63377.0,63376.0,2.11171948]
[1719810324246,0.00079856,63377.0,63376.0,2.31171948]
[1719810324473,0.00079856,63377.0,63376.0,2.62729548]
[1719810325499,0.00079856,63377.0,63376.0,2.36232498]
[1719810325739,0.00079856,63377.0,63376.0,1.60487298]
[1719810325979,0.00079856,63377.0,63376.0,1.91844898]
[1719810326249,0.00079856,63377.0,63376.0,2.12344898]
[1719810326491,0.00079856,63377.0,63376.0,1.92344898]
[1719810326725,0.00079856,63377.0,63376.0,1.91844898]
[1719810327164,0.00079856,63377.0,63376.0,1.93144898]
[1719810327744,0.00079856,63377.0,63376.0,1.93044898]
[1719810327944,0.00079856,63377.0,63376.0,2.13044898]
[1719810328097,0.00079856,63377.0,63376.0,2.14444898]
[1719810328300,0.00079856,63377.0,63376.0,2.13044898]
[1719810328712,0.00079856,63377.0,63376.0,2.14344898]
[1719810329338,0.00079856,63377.0,63376.0,1.23859698]
[1719810329596,0.00079856,63377.0,63376.0,1.31229698]
[1719810330410,0.00020898,63377.0,63376.0,1.31229698]
[1719810337891,0.00020898,63377.0,63376.0,1.62787298]
[1719810338801,0.00020898,63377.0,63376.0,1.81914348]
[1719810339626,0.00020898,63377.0,63376.0,2.14344898]
[1719810340027,0.00020898,63377.0,63376.0,1.23859698]
[1719810340230,0.00020898,63377.0,63376.0,1.31229698]
[1719810340483,0.00803051,63379.0,63377.0,0.157785]
[1719810340655,0.00803051,63379.0,63378.0,0.16233898]
[1719810342239,0.00803051,63379.0,63378.0,0.17233898]
[1719810342631,0.00803051,63379.0,63378.0,0.18233898]
[1719810350562,0.00744282,63379.0,63378.0,0.18233898]
[1719810352039,0.00744282,63379.0,63378.0,0.93348898]
[1719810354836,0.16522282,63379.0,63378.0,0.77115]
[1719810361871,0.00744282,63379.0,63378.0,0.77115]
[1719810362100,0.00744282,63379.0,63378.0,0.81853662]
[1719810363123,0.00744282,63379.0,63378.0,0.77115]
[1719810365120,0.00744282,63379.0,63378.0,0.91755]
[1719810368642,0.00744282,63379.0,63378.0,0.99125]
[1719810370529,0.00685358,63379.0,63378.0,0.99125]
[1719810371129,0.00685358,63379.0,63378.0,1.06236306]
[1719810372952,0.00685358,63379.0,63378.0,1.22014606]
[1719810375141,0.00685358,63379.0,63378.0,1.14644606]
[1719810375349,0.00685358,63379.0,63378.0,1.22014606]
[1719810375571,0.00685358,63379.0,63378.0,1.149033]
[1719810375767,0.00685358,63379.0,63378.0,1.22015123]
[1719810375972,0.00685358,63379.0,63378.0,1.149033]
[1719810376125,0.00685358,63379.0,63378.0,1.22015123]
[1719810378680,0.00685358,63379.0,63378.0,1.22015098]
[1719810380406,0.00628187,63379.0,63378.0,1.22015098]
[1719810381300,0.00628187,63379.0,63378.0,1.53571698]
[1719810381978,0.00628187,63379.0,63378.0,1.464599]
[1719810382200,0.00628187,63379.0,63378.0,1.53571699]
[1719810382776,0.00628187,63379.0,63378.0,1.53571693]
[1719810384759,0.00628187,63379.0,63378.0,2.71455841]
[1719810384964,0.00628187,63379.0,63378.0,2.76289436]
[1719810385388,0.00628187,63379.0,63378.0,2.70990841]
[1719810385562,0.00628187,63379.0,63378.0,2.64436448]
[1719810386384,0.00628187,63379.0,63378.0,2.63436448]
[1719810386615,0.00628187,63379.0,63378.0,2.38239398]
[1719810386819,0.00628187,63379.0,63378.0,2.44609398]
[1719810387045,0.00628187,63379.0,63378.0,2.43309398]
[1719810387243,0.00628187,63379.0,63378.0,2.45909398]
[1719810387638,0.00628187,63379.0,63378.0,2.44709398]
[1719810388835,0.00628187,63379.0,63378.0,2.57949925]
[1719810389010,0.00628187,63379.0,63378.0,2.57949926]
[1719810390395,0.00628187,63379.0,63378.0,2.77076976]
[1719810390610,0.00569406,63379.0,63378.0,2.77076976]
[1719810391744,0.00569406,63379.0,63378.0,2.77073907]
[1719810391878,0.00569406,63379.0,63378.0,2.65236448]
[1719810392330,0.00569406,63379.0,63378.0,2.77073907]
[1719810392537,0.00569406,63379.0,63378.0,2.65236448]
[1719810394470,0.00569406,63379.0,63378.0,2.67122183]
[1719810395607,0.00569406,63379.0,63378.0,2.78957344]
[1719810397213,0.00569406,63379.0,63378.0,2.67122183]
[1719810399660,0.00569406,63379.0,63378.0,2.76587958]
[1719810400486,0.00512619,63379.0,63378.0,2.76587958]
[1719810400967,0.00512619,63379.0,63378.0,2.69217958]
[1719810401168,0.00512619,63379.0,63378.0,2.67122183]
[1719810401386,0.00512619,63379.0,63378.0,2.76587583]
[1719810401555,0.00512619,63379.0,63378.0,2.67122183]
[1719810401757,0.00512619,63379.0,63378.0,2.76587399]
[1719810402366,0.00512619,63379.0,63378.0,2.57460349]
[1719810402533,0.00512619,63379.0,63378.0,2.76587399]
[1719810402678,0.00512619,63379.0,63378.0,2.69217399]
[1719810402877,0.00512619,63379.0,63378.0,2.76587399]
[1719810403486,0.00512619,63379.0,63378.0,1.99463749]
[1719810403693,0.00512619,63379.0,63378.0,1.89998533]
[1719810405157,0.00512619,63379.0,63378.0,1.14752094]
[1719810405371,0.08192619,63379.0,63378.0,0.780074]
[1719810405998,0.08192619,63379.0,63378.0,0.853774]
[1719810406347,0.08192619,63379.0,63378.0,0.825774]
[1719810406550,0.08192619,63379.0,63378.0,0.835774]
[1719810406775,0.08192619,63379.0,63378.0,0.845774]
[1719810408655,0.14262619,63379.0,63378.0,0.772074]
[1719810414251,0.00512619,63379.0,63378.0,2.33599848]
[1719810414499,0.00512619,63379.0,63378.0,2.40700018]
[1719810414686,0.00512619,63379.0,63378.0,2.33599848]
[1719810414893,0.00512619,63379.0,63378.0,2.43065901]
[1719810415446,0.00512619,63379.0,63378.0,2.65156448]
[1719810415901,0.00512619,63379.0,63378.0,2.72255958]
[1719810416102,0.00512619,63379.0,63378.0,2.65156448]
[1719810417054,0.00512619,63379.0,63378.0,2.74622501]
[1719810417255,0.00512619,63379.0,63378.0,2.65156448]
[1719810417661,0.00512619,63379.0,63378.0,2.72256154]
[1719810418497,0.00512619,63379.0,63378.0,2.72256277]
[1719810418911,0.00512619,63379.0,63378.0,2.71710437]
[1719810419158,0.00512619,63379.0,63378.0,2.71710507]
[1719810419281,0.00512619,63379.0,63378.0,2.65156448]
[1719810442634,0.00512619,63379.0,63378.0,2.71710573]
[1719810442879,0.00512619,63379.0,63378.0,2.65156448]
[1719810443156,0.00512619,63379.0,63378.0,2.71710577]
[1719810445691,0.00512619,63379.0,63378.0,2.71710581]
[1719810447359,0.00512619,63379.0,63378.0,2.64340581]
[1719810447561,0.00512619,63379.0,63378.0,2.74621466]
[1719810448831,0.00512619,63379.0,63378.0,2.74621548]
[1719810450375,0.00512619,63379.0,63378.0,2.65156448]
[1719810450574,0.00512619,63379.0,63378.0,2.74621544]
[1719810451201,0.00512619,63379.0,63378.0,2.55494494]
[1719810451393,0.00512619,63379.0,63378.0,2.65156448]
[1719810452450,0.00512619,63379.0,63378.0,2.46029398]
[1719810453501,0.00512619,63379.0,63378.0,1.72332798]
[1719810453709,0.15022619,63379.0,63378.0,1.79702798]
[1719810453911,0.15022619,63379.0,63378.0,1.86803442]
[1719810454628,0.08662619,63379.0,63378.0,1.86803442]
[1719810455311,0.08662619,63379.0,63378.0,1.79702798]
[1719810455552,0.00512619,63379.0,63378.0,1.86804109]
[1719810455819,0.00512619,63379.0,63378.0,1.8680479]
[1719810456534,0.00512619,63379.0,63378.0,1.79702798]
[1719810456766,0.00512619,63379.0,63378.0,2.13279848]
[1719810456998,0.00512619,63379.0,63378.0,2.22749171]
[1719810457592,0.00512619,63379.0,63378.0,2.16379171]
[1719810457914,0.00512619,63379.0,63378.0,2.06909848]
[1719810458745,0.00512619,63379.0,63378.0,2.16382775]
[1719810461840,0.00512619,63379.0,63378.0,2.16384088]
[1719810462861,0.00086092,63379.0,63378.0,2.16384088]
[1719810464296,0.00086092,63379.0,63378.0,2.08304088]
[1719810464675,0.00086092,63379.0,63378.0,1.81807038]
[1719810465083,0.00086092,63379.0,63378.0,1.89176626]
[1719810465487,0.00086092,63379.0,63378.0,1.89176587]
[1719810468344,0.00086092,63379.0,63378.0,1.89176122]
[1719810471451,0.00086092,63379.0,63378.0,1.89175724]
[1719810472411,0.00086092,63379.0,63378.0,1.81805724]
[1719810472610,0.00086092,63379.0,63378.0,1.89175724]
[1719810473256,0.00086092,63379.0,63378.0,1.81805724]
[1719810473497,0.00086092,63379.0,63378.0,1.89175724]
[1719810474775,0.00086092,63379.0,63378.0,1.8917555]
[1719810478036,0.00086092,63379.0,63378.0,1.79702798]
[1719810478239,0.00086092,63379.0,63378.0,1.89175665]
[1719810478451,0.00086092,63379.0,63378.0,1.79702798]
[1719810478588,0.00086092,63379.0,63378.0,1.89175665]
[1719810480986,0.00086092,63379.0,63378.0,1.89175977]
[1719810481382,0.00086092,63379.0,63378.0,1.89175974]
[1719810482586,0.00086092,63379.0,63378.0,2.08303024]
[1719810483430,0.00086092,63379.0,63378.0,1.98829848]
[1719810484892,0.00086092,63379.0,63378.0,1.9281217]
[1719810485327,0.00086092,63379.0,63378.0,2.1193922]
[1719810487620,0.00086092,63379.0,63378.0,1.8544217]
[1719810487816,0.00086092,63379.0,63378.0,2.04655518]
[1719810488064,0.00086092,63379.0,63378.0,2.23782568]
[1719810488237,0.00086092,63379.0,63378.0,2.4349582]
[1719810488440,0.00086092,63379.0,63378.0,2.1699877]
[1719810488659,0.00086092,63379.0,63378.0,2.2436877]
[1719810489474,0.00086092,63379.0,63378.0,2.36212118]
[1719810490088,0.00086092,63379.0,63378.0,2.11259398]
[1719810490292,0.00086092,63379.0,63378.0,2.36213798]
[1719810490486,0.00086092,63379.0,63378.0,2.24368767]
[1719810490689,0.00086092,63379.0,63378.0,2.28844518]
[1719810490902,0.00086092,63379.0,63378.0,2.36214518]
[1719810491694,0.00086092,63379.0,63378.0,1.97287918]
[1719810491954,0.00086092,63379.0,63378.0,2.04657918]
[1719810493275,0.00086092,63379.0,63378.0,2.04659788]
[1719810493550,0.00086092,63379.0,63378.0,2.04659852]
[1719810494628,0.00086092,63379.0,63378.0,1.97289852]
[1719810494838,0.00086092,63379.0,63378.0,2.04659852]
[1719810495593,0.00086092,63379.0,63378.0,2.12489852]
[1719810496326,0.00086092,63379.0,63378.0,1.99381758]
[1719810496528,0.00086092,63379.0,63378.0,2.12491153]
[1719810497701,0.00086092,63379.0,63378.0,2.00642193]
[1719810497837,0.00086092,63379.0,63378.0,2.19769243]
[1719810498247,0.00086092,63379.0,63378.0,1.93272193]
[1719810498444,0.00086092,63379.0,63378.0,2.12399243]
[1719810498671,0.00086092,63379.0,63378.0,2.19769243]
[1719810499932,0.00086092,63379.0,63378.0,2.00642193]
[1719810503158,0.00086092,63379.0,63378.0,1.87532798]
[1719810503704,0.00086092,63379.0,63378.0,2.06659848]
[1719810505388,0.00086092,63379.0,63378.0,2.19769242]
[1719810510154,0.00086092,63379.0,63378.0,2.06659848]
[1719810511485,0.00086092,63379.0,63378.0,1.87532798]
[1719810511640,0.00086092,63379.0,63378.0,2.06659848]
[1719810512701,0.00086092,63379.0,63378.0,2.38216448]
[1719810512950,0.00086092,63379.0,63378.0,2.84346448]
[1719810513157,0.00086092,63379.0,63378.0,3.17115935]
[1719810513331,0.00086092,63379.0,63378.0,3.48672535]
[1719810513957,0.00086092,63379.0,63378.0,3.47672535]
[1719810514448,0.00086092,63379.0,63378.0,3.49072535]
[1719810514799,0.00086092,63379.0,63378.0,3.48072535]
[1719810515170,0.00086092,63379.0,63378.0,3.48172535]
[1719810515555,0.00086092,63379.0,63378.0,3.48072535]
[1719810516136,0.00086092,63379.0,63378.0,3.49472535]
[1719810516925,0.00086092,63379.0,63378.0,3.16703048]
[1719810517331,0.00086092,63379.0,63378.0,3.23256559]
[1719810518401,0.00086092,63379.0,63378.0,3.56024239]
[1719810518599,0.00086092,63379.0,63378.0,3.23256559]
[1719810520597,0.00086092,63379.0,63378.0,3.16703048]
[1719810520814,0.00086092,63379.0,63378.0,3.23256575]
[1719810521750,0.00086092,63379.0,63378.0,3.26099326]
[1719810522411,0.00086092,63379.0,63378.0,3.41102644]
[1719810522641,0.00086092,63379.0,63378.0,3.39206371]
[1719810524165,0.00086092,63379.0,63378.0,3.32652948]
[1719810524369,0.00086092,63379.0,63378.0,3.39206522]
[1719810527412,0.00086092,63379.0,63378.0,3.32652948]
[1719810527624,0.00086092,63379.0,63378.0,3.39206504]
[1719810528620,0.00086092,63379.0,63378.0,3.41102793]
[1719810530797,0.00086092,63379.0,63378.0,3.41102615]
[1719810531015,0.00086092,63379.0,63378.0,3.19545799]
[1719810531226,0.00086092,63379.0,63378.0,3.41102651]
[1719810533387,0.00086092,63379.0,63378.0,3.39206374]
[1719810533567,0.00086092,63379.0,63378.0,3.41102643]
[1719810533761,0.00086092,63379.0,63378.0,3.41102638]
[1719810534448,0.00086092,63379.0,63378.0,3.39206365]
[1719810535001,0.00086092,63379.0,63378.0,3.4110264]
[1719810535199,0.00086092,63379.0,63378.0,3.39206365]
[1719810535443,0.00086092,63379.0,63378.0,3.41102647]
[1719810536099,0.00086092,63379.0,63378.0,3.38259896]
[1719810536299,0.00086092,63379.0,63378.0,3.36363614]
[1719810536499,0.00086092,63379.0,63378.0,3.38259905]
[1719810537108,0.00086092,63379.0,63378.0,3.38259982]
[1719810537744,0.00086092,63379.0,63378.0,3.36363691]
[1719810538687,0.00086092,63379.0,63378.0,3.28993691]
[1719810539032,0.00086092,63379.0,63378.0,3.36363691]
[1719810539742,0.00086092,63379.0,63378.0,3.28993691]
[1719810539877,0.00086092,63379.0,63378.0,3.36363691]
[1719810540273,0.00086092,63379.0,63378.0,3.23256674]
[1719810540530,0.00086092,63379.0,63378.0,3.69131914]
[1719810543106,0.00086092,63379.0,63378.0,3.49471035]
[1719810543308,0.00086092,63379.0,63378.0,3.69131797]
[1719810543535,0.00086092,63379.0,63378.0,3.37575197]
[1719810543734,0.00086092,63379.0,63378.0,3.23615197]